[Event "CZE-tht Extraliga 2018-19"]
[Site "Czech Republic"]
[Date "2019.02.09"]
[Round "7.6"]
[White "Simek, Petr (86)"]
[Black "Szotkowski, Jakub"]
[Result "0-1"]
[ECO "A40"]
[WhiteElo "2319"]
[BlackElo "2345"]
[Annotator "NA"]
[PlyCount "96"]
[EventDate "2018.11.03"]
[EventType "team-tourn"]
[EventCountry "CZE"]
[SourceTitle "playchess.com"]
[Source "ChessBase"]
[SourceQuality "1"]
[WhiteTeam "Siesta"]
[BlackTeam "Beskydska"]
[TimeControl "40/5400+30:1800+30"]

{[%evp 13,85,31,15,6,15,35,35,27,50,19,34,56,36,45,81,100,102,101,131,136,179,169,172,177,259,253,351,164,325,355,356,97,84,84,97,28,56,66,94,0,52,58,79,0,0,-10,0,0,0,32767,32767,32767,32767,0,0,0,0,-11,0,32767,32767,32767,-116,-124,0,32767,42,32767,-62,-177,32767,-164,-179,-193]} 1. d4 {[%emt 0:00:00]} Nf6 {[%emt 0:00:00]} 2. c4 {[%emt 0:00:00]} e6 {[%emt 0:01:01]} 3. g3 {[%emt 0:00:00]} c5 {[%emt 0:01:36]} 4. d5 {[%emt 0:00:00]} exd5 {[%emt 0:00:43]} 5. cxd5 {[%emt 0:00:00]} d6 {[%emt 0:00:08]} 6. Nc3 {[%emt 0:00:00]} g6 {[%emt 0:00:23]} 7. Bg2 {[%emt 0:00:02]} Bg7 {[%emt 0:00:07]} 8. Nf3 {[%emt 0:00:05]} O-O {[%emt 0:00:21]} 9. O-O {[%emt 0:00:31]} a6 {[%emt 0:01:15]} 10. a4 {[%emt 0:00:07]} Re8 {[%emt 0:00:42]} 11. Bf4 {[%emt 0:00:32]} Ne4 {[%emt 0:04:20]} 12. Nxe4 {[%emt 0:02:39]} Rxe4 {[%emt 0:00:18]} 13. Nd2 {[%emt 0:00:07]} Rxf4 {[%emt 0:02:16]} 14. gxf4 {[%emt 0:00:08]} Bxb2 {[%emt 0:00:07]} 15. Rb1 {[%emt 0:00:21]} Bg7 {[%emt 0:00:38]} 16. Nc4 {[%emt 0:11:39]} b5 {[%emt 0:29:34]} 17. axb5 {[%emt 0:00:45]} axb5 {[%emt 0:00:09]} 18. Rxb5 {[%emt 0:00:09]} Ba6 {[%emt 0:05:13]} (18... Bf8 $142 19. Qd2 Nd7) 19. Qa4 {[%emt 0:24:16]} Bc3 {[%emt 0:12:12]} 20. Rb3 {[%emt 0:14:16]} (20. Rc1 $142 Bb4 21. Rb6) 20... Bb4 $2 {[%emt 0:01:58]} (20... Bxc4 {keeps fighting.} 21. Qxc4 Bg7) 21. Re3 {[%emt 0:00:15]} Nd7 {[%emt 0:12:48]} 22. Qc2 $2 {[%emt 0:04:00]} (22. Nxd6 $18 Bxe2 23. Qc6) 22... Qf6 {[%emt 0:04:50]} 23. Qe4 {[%emt 0:01:19]} Kg7 {[%emt 0:01:53]} 24. Bh3 {[%emt 0:01:45]} ({White should play} 24. Rb3 $16) 24... Bxc4 $1 {[%emt 0:02:04]} 25. Bxd7 {[%emt 0:04:04]} Ba2 {[%emt 0:01:04]} 26. Bb5 {[%emt 0:13:27]} (26. f5 $14) 26... Bc3 {[%emt 0:01:58]} 27. Rf3 {[%emt 0:02:24]} Rb8 {[%emt 0:02:18]} 28. Bc6 {[%emt 0:00:58]} ({White should try} 28. Qd3 $1 $14) 28... Rb4 {[%emt 0:02:52]} 29. Qc2 {[%emt 0:00:33]} Bb2 {[%emt 0:00:10]} 30. Kg2 {[%emt 0:05:15]} c4 {[%emt 0:00:38]} 31. f5 {[%emt 0:01:59]} g5 {[%emt 0:08:32]} 32. Rg3 {[%emt 0:00:25]} c3 {[%emt 0:01:12]} 33. f4 $1 {[%emt 0:01:06]} h6 {[%emt 0:00:05]} 34. h4 {[%emt 0:00:11]} g4 {[%emt 0:01:17]} 35. Rxg4+ {[%emt 0:00:06]} Kh7 {[%emt 0:00:06]} 36. Qd3 {[%emt 0:03:46]} Bb3 {[%emt 0:01:53]} 37. Kh2 {[%emt 0:02:43]} c2 {[%emt 0:00:20]} 38. Qe3 {[%emt 0:07:06] [#]} Qxf5 {[%emt 0:00:21]} (38... Rb8 $1 $17) 39. Qg3 {[%emt 0:01:18]} Re4 {[%emt 0:00:59]} ({Avoid the trap} 39... Bxd5 $2 40. Rg1 $18) 40. e3 {[%emt 0:01:07] [#]} Rxe3 $1 {[%emt 0:00:53]} 41. Rg7+ {[%emt 0:01:24]} (41. Qxe3 $17 {was the only defense.} Qxg4 42. Qxb3 Qxh4+ 43. Kg2 Qg4+ 44. Qg3 Qe2+ 45. Qf2) 41... Bxg7 {[%emt 0:00:52]} 42. Qxe3 {[%emt 0:00:02] [#]} Bc4 $1 {[%emt 0:04:10]} ({Inferior is} 42... Bxd5 43. Bxd5 Qxd5 44. Rc1 $16) 43. Rg1 $19 {[%emt 0:10:23]} Bb2 {[%emt 0:10:42]} 44. Bd7 {[%emt 0:02:45]} Qxd5 {[%emt 0:09:36]} 45. Qe8 {[%emt 0:07:12]} Bg7 {[%emt 0:00:44]} 46. Qc8 {[%emt 0:00:10]} Qd2+ {[%emt 0:02:09]} 47. Kh3 {[%emt 0:00:05]} Qe3+ {[%emt 0:01:38]} 48. Rg3 {[%emt 0:03:53]} Be6+ {[%emt 0:00:38]} 0-1

[Event "CZE-tht Extraliga 2018-19"]
[Site "Czech Republic"]
[Date "2019.02.09"]
[Round "7.6"]
[White "Richterova, Natasa"]
[Black "Neuman, Petr"]
[Result "1/2-1/2"]
[ECO "B51"]
[WhiteElo "2216"]
[BlackElo "2404"]
[Annotator "NA"]
[PlyCount "137"]
[EventDate "2018.11.03"]
[EventType "team-tourn"]
[EventCountry "CZE"]
[SourceTitle "playchess.com"]
[Source "ChessBase"]
[SourceQuality "1"]
[WhiteTeam "Ostrava"]
[BlackTeam "Pardubice"]
[TimeControl "40/5400+30:1800+30"]

1. e4 {[%emt 0:00:06]} c5 {[%emt 0:00:00]} 2. Nf3 {[%emt 0:00:04]} d6 {[%emt 0:00:00]} 3. Bb5+ {[%emt 0:00:04]} Nd7 {[%emt 0:00:00]} 4. O-O {[%emt 0:00:20]} a6 {[%emt 0:00:09]} 5. Bxd7+ {[%emt 0:04:10]} Bxd7 {[%emt 0:00:11]} 6. d4 {[%emt 0:00:06]} cxd4 {[%emt 0:00:08]} 7. Nxd4 {[%emt 0:01:25]} Nf6 {[%emt 0:01:24]} 8. Qd3 {[%emt 0:05:40]} e5 {[%emt 0:09:05]} 9. Nb3 {[%emt 0:06:02]} Rc8 {[%emt 0:07:32]} 10. Nc3 {[%emt 0:01:13]} h6 {[%emt 0:00:45]} 11. a4 {[%emt 0:00:38]} Be7 {[%emt 0:02:55]} 12. a5 {[%emt 0:02:27]} Be6 {[%emt 0:06:21]} 13. Rd1 {[%emt 0:01:55]} O-O {[%emt 0:06:00]} 14. Be3 {[%emt 0:01:56]} Qc7 {[%emt 0:01:13]} 15. Nd2 {[%emt 0:08:26]} Qc6 {[%emt 0:01:51]} 16. f3 {[%emt 0:06:22]} d5 {[%emt 0:01:46]} 17. exd5 {[%emt 0:00:26]} Bxd5 {[%emt 0:05:42]} 18. Bf2 {[%emt 0:06:42]} Be6 {[%emt 0:05:23]} 19. Qe2 {[%emt 0:03:33]} Bb4 {[%emt 0:03:46]} 20. Qxe5 {[%emt 0:09:59]} Bxc3 {[%emt 0:01:41]} 21. bxc3 {[%emt 0:00:19]} Nd7 {[%emt 0:00:26]} 22. Qg3 {[%emt 0:08:10]} Qxc3 {[%emt 0:00:49]} 23. Nb3 {[%emt 0:04:47]} Qc4 {[%emt 0:14:08]} 24. Nd4 {[%emt 0:05:37]} Nc5 {[%emt 0:01:03]} 25. Be3 {[%emt 0:02:33]} Kh7 {[%emt 0:01:28]} 26. Qe1 {[%emt 0:06:04]} Rfe8 {[%emt 0:04:48]} 27. Rab1 {[%emt 0:00:26]} Bd7 {[%emt 0:01:32]} 28. Qd2 {[%emt 0:01:38]} Re7 {[%emt 0:04:42]} 29. Bf2 {[%emt 0:01:38]} Be8 {[%emt 0:03:06]} 30. h3 {[%emt 0:07:11]} f6 {[%emt 0:01:30]} 31. Rb4 {[%emt 0:01:25]} Qd5 {[%emt 0:01:28]} 32. c4 {[%emt 0:00:19]} Qd7 {[%emt 0:02:15]} 33. Nc2 {[%emt 0:01:43]} Qxd2 {[%emt 0:01:19]} 34. Rxd2 {[%emt 0:00:00]} Bg6 {[%emt 0:00:15]} 35. Ne1 {[%emt 0:02:02]} Bf7 {[%emt 0:04:35]} 36. Nc2 {[%emt 0:00:25]} Rcc7 {[%emt 0:01:16]} 37. Bg3 {[%emt 0:00:38]} Rcd7 {[%emt 0:00:43]} 38. Bd6 {[%emt 0:00:45]} Re6 {[%emt 0:00:18]} 39. Bf4 {[%emt 0:01:35]} Rxd2 {[%emt 0:01:46]} 40. Bxd2 {[%emt 0:00:01]} Re2 {[%emt 0:00:34]} 41. Be3 {[%emt 0:30:05]} Nd3 {[%emt 0:34:05]} 42. Rxb7 {[%emt 0:00:47]} Bg6 {[%emt 0:01:01]} 43. Bd4 {[%emt 0:00:00]} Rxc2 {[%emt 0:00:00]} 44. Bxf6 {[%emt 0:00:00]} h5 {[%emt 0:00:00]} 45. Rxg7+ {[%emt 0:00:00]} Kh6 {[%emt 0:00:00]} 46. h4 {[%emt 0:00:00]} Nf4 {[%emt 0:00:00]} 47. Ra7 {[%emt 0:00:00]} Ne6 {[%emt 0:00:00]} 48. Rxa6 {[%emt 0:00:00]} Bf5 {[%emt 0:00:00]} 49. Rc6 {[%emt 0:00:00]} Kg6 {[%emt 0:00:00]} 50. Be5 {[%emt 0:00:00]} Kf7 {[%emt 0:00:00]} 51. a6 {[%emt 0:00:00]} Ra2 {[%emt 0:00:00]} 52. Kh2 {[%emt 0:00:00]} Bd3 {[%emt 0:00:00]} 53. Kg1 {[%emt 0:00:00]} Ra4 {[%emt 0:00:00]} 54. Rb6 {[%emt 0:00:00]} Bxc4 {[%emt 0:00:00]} 55. Rb7+ {[%emt 0:00:00]} Kg6 {[%emt 0:00:00]} 56. a7 {[%emt 0:00:00]} Bd5 {[%emt 0:00:00]} 57. Rd7 {[%emt 0:00:00]} Ba8 {[%emt 0:00:00]} 58. Bg3 {[%emt 0:00:00]} Ra1+ {[%emt 0:00:00]} 59. Kh2 {[%emt 0:00:16]} Ra2 {[%emt 0:00:00]} 60. Kg1 {[%emt 0:00:11]} Kf6 {[%emt 0:00:00]} 61. Rh7 {[%emt 0:01:27]} Kg6 {[%emt 0:00:00]} 62. Rd7 {[%emt 0:00:04]} Ra4 {[%emt 0:00:00]} 63. Bf2 {[%emt 0:03:34]} Ra1+ {[%emt 0:00:00]} 64. Kh2 {[%emt 0:00:05]} Ra2 {[%emt 0:00:00]} 65. Kg3 {[%emt 0:01:15]} Kf6 {[%emt 0:00:00]} 66. Rh7 {[%emt 0:00:50]} Kg6 {[%emt 0:00:00]} 67. Rd7 {[%emt 0:00:32]} Kf6 {[%emt 0:00:00]} 68. Rh7 {[%emt 0:00:04]} Kg6 {[%emt 0:00:00]} 69. Rd7 {[%emt 0:00:05]} 1/2-1/2

[Event "CZE-tht Extraliga 2018-19"]
[Site "Czech Republic"]
[Date "2019.02.09"]
[Round "7.7"]
[White "Petr, Martin"]
[Black "Krajina, Ales"]
[Result "1-0"]
[ECO "B02"]
[WhiteElo "2447"]
[BlackElo "2118"]
[Annotator "NA"]
[PlyCount "111"]
[EventDate "2018.11.03"]
[EventType "team-tourn"]
[EventCountry "CZE"]
[SourceTitle "playchess.com"]
[Source "ChessBase"]
[SourceQuality "1"]
[WhiteTeam "Pardubice"]
[BlackTeam "Ostrava"]
[TimeControl "40/5400+30:1800+30"]

1. e4 {[%emt 0:00:00]} Nf6 {[%emt 0:00:00]} 2. e5 {[%emt 0:00:00]} Ng8 {[%emt 0:00:07]} 3. d4 {[%emt 0:01:21]} d5 {[%emt 0:00:16]} 4. Nf3 {[%emt 0:00:42]} (4. Bd3 c5 5. c3 Nc6 6. Ne2 e6 7. Nd2 Nge7 8. O-O Nf5 9. Nf3 Be7 10. Re1 cxd4 11. Bxf5 exf5 12. Nexd4 Be6 13. Qd3 Qd7 14. Bg5 Bc5 15. Rad1 {1-0 (67) Nunn,J (2600)-Sanders,I (2341) London 2016}) 4... Bg4 {[%emt 0:00:16]} 5. Be2 {[%emt 0:00:44]} e6 {[%emt 0:00:15]} 6. Be3 {[%emt 0:01:07] B02: Alekhine's Defence: Chase Variation and lines with early Nc3} Ne7 $146 {[%emt 0:01:05]} ({Predecessor:} 6... Nd7 7. c4 Bb4+ 8. Nc3 Ne7 9. Ng5 Bxe2 10. Qxe2 dxc4 11. Qh5 g6 {½-½ (40) Brkic,Z (2083)-Prentic,I (2044) Belgrade 2017}) 7. h3 {[%emt 0:03:07]} Bxf3 {[%emt 0:00:15]} 8. Bxf3 {[%emt 0:00:04]} Nf5 {[%emt 0:00:18]} 9. O-O {[%emt 0:00:30]} c5 {[%emt 0:00:16]} 10. c4 {[%emt 0:04:42]} cxd4 11. Bf4 {[%emt 0:03:29]} Nc6 {[%emt 0:12:19]} 12. cxd5 {[%emt 0:00:08]} exd5 {[%emt 0:00:30]} 13. Nd2 {[%emt 0:05:08]} Bb4 {[%emt 0:07:59]} 14. Nb3 {[%emt 0:06:28]} O-O {[%emt 0:01:25]} 15. Bg4 {[%emt 0:00:54]} Nfe7 {[%emt 0:00:30]} 16. Nxd4 Ng6 {[%emt 0:00:34]} 17. Nxc6 {[%emt 0:00:37]} bxc6 {[%emt 0:04:00]} 18. Bg3 {[%emt 0:07:38]} Qb6 {[%emt 0:03:12]} 19. Qc2 {[%emt 0:05:53]} Rad8 {[%emt 0:02:19]} 20. Rac1 {[%emt 0:01:14]} Rfe8 {[%emt 0:01:50]} 21. Bf5 {[%emt 0:04:03]} Bf8 {[%emt 0:01:49]} 22. Rfe1 {[%emt 0:00:55]} c5 23. h4 {[%emt 0:00:58]} c4 {[%emt 0:02:36]} 24. h5 {[%emt 0:02:10]} Bb4 {[%emt 0:00:00]} 25. hxg6 {[%emt 0:00:32]} hxg6 {[%emt 0:00:14]} 26. Bg4 {[%emt 0:00:30]} Bxe1 {[%emt 0:11:09]} 27. Rxe1 {[%emt 0:02:06]} Qa5 {[%emt 0:00:30]} 28. Ra1 {[%emt 0:02:09]} Rb8 {[%emt 0:12:00]} 29. Bd7 {[%emt 0:00:21]} Re7 {[%emt 0:00:30]} 30. e6 {[%emt 0:00:30]} Rd8 31. Bh4 {[%emt 0:03:41]} Rdxd7 {[%emt 0:02:29]} 32. exd7 {[%emt 0:00:10]} Rxd7 {[%emt 0:00:08]} 33. Bg5 {[%emt 0:02:48]} d4 34. Bd2 Qd5 {[%emt 0:13:02]} 35. Re1 {[%emt 0:03:10]} Rb7 $18 {[%emt 0:00:54]} 36. Re8+ {[%emt 0:03:26]} Kh7 {[%emt 0:07:15]} 37. Bc1 {[%emt 0:02:40]} Rb6 38. Qe4 Qxe4 {[%emt 0:01:35]} 39. Rxe4 {[%emt 0:00:35]} c3 {[%emt 0:00:10]} 40. bxc3 {[%emt 0:00:30]} Rb1 {[%emt 0:00:30]} 41. Re1 {[%emt 0:29:35]} dxc3 {[%emt 0:29:46]} 42. Kf1 {[%emt 0:02:57]} Ra1 {[%emt 0:02:15]} 43. a3 {[%emt 0:00:06]} f5 {[%emt 0:02:17]} 44. Ke2 {[%emt 0:02:43]} Ra2+ {[%emt 0:00:23]} 45. Ke3 {[%emt 0:00:25]} f4+ {[%emt 0:00:07]} 46. Kf3 {[%emt 0:01:11]} g5 {[%emt 0:01:38]} 47. Rf1 {[%emt 0:00:30]} Kg6 {[%emt 0:02:27]} 48. Ke4 {[%emt 0:00:08]} Kh5 {[%emt 0:00:37]} 49. Kd3 {[%emt 0:02:09]} Kg4 {[%emt 0:00:31]} 50. Kxc3 {[%emt 0:00:04]} Re2 {[%emt 0:00:12]} 51. Bd2 {[%emt 0:02:53]} a6 {[%emt 0:04:24]} 52. a4 {[%emt 0:00:54]} f3 {[%emt 0:02:12]} 53. gxf3+ {[%emt 0:00:27]} Kxf3 {[%emt 0:00:02]} 54. Be3 {[%emt 0:01:19]} Kg2 {[%emt 0:00:14]} 55. Rd1 {[%emt 0:01:45]} g4 {[%emt 0:00:54]} 56. Rd7 {[%emt 0:00:16]} 1-0

[Event "CZE-tht Extraliga 2018-19"]
[Site "Czech Republic"]
[Date "2019.02.09"]
[Round "7.7"]
[White "Jasny, Stanislav"]
[Black "Kovar, Vojtech"]
[Result "1/2-1/2"]
[ECO "D56"]
[WhiteElo "2361"]
[BlackElo "2237"]
[Annotator "NA"]
[PlyCount "114"]
[EventDate "2018.11.03"]
[EventType "team-tourn"]
[EventCountry "CZE"]
[SourceTitle "playchess.com"]
[Source "ChessBase"]
[SourceQuality "1"]
[WhiteTeam "Beskydska"]
[BlackTeam "Siesta"]
[TimeControl "40/5400+30:1800+30"]

1. d4 {[%emt 0:00:00]} d5 {[%emt 0:00:00]} 2. c4 {[%emt 0:00:00]} e6 {[%emt 0:00:00]} 3. Nc3 {[%emt 0:00:02]} Nf6 4. Bg5 {[%emt 0:00:51]} Be7 {[%emt 0:00:00]} 5. e3 {[%emt 0:00:18]} h6 {[%emt 0:00:00]} 6. Bh4 {[%emt 0:00:19]} O-O {[%emt 0:00:00]} 7. Nf3 {[%emt 0:00:15]} Nbd7 {[%emt 0:00:17]} 8. Qc2 {[%emt 0:04:36]} c5 {[%emt 0:00:05]} 9. Rd1 {[%emt 0:01:12]} Qa5 {[%emt 0:10:02]} 10. Be2 {[%emt 0:21:08] D61: Queen's Gambit Declined: Classical: 7 Qc2} (10. cxd5 Nxd5 11. Bxe7 Nxe7 12. Be2 Nf6 13. O-O cxd4 14. Rxd4 Nc6 15. Rd2 Bd7 16. Rfd1 Rfd8 17. Qb3 Rab8 {½-½ (49) So,W (2770)-Kramnik,V (2812) Leuven 2016}) 10... cxd4 $146 {[%emt 0:08:07]} ({Predecessor:} 10... dxc4 11. Bxc4 a6 12. O-O b5 13. Bd3 cxd4 14. Nxd4 {½-½ (14) Moradiabadi,E (2528)-Arun Prasad,S (2490) Las Vegas 2017}) 11. Nxd4 {[%emt 0:01:12]} Bb4 {[%emt 0:00:05]} 12. O-O {[%emt 0:00:38]} Bxc3 {[%emt 0:00:03]} 13. bxc3 dxc4 {[%emt 0:36:40]} 14. Bxc4 {[%emt 0:11:04]} Ne5 {[%emt 0:00:02]} 15. Bb3 {[%emt 0:06:34]} Nd5 {[%emt 0:04:23] [#]} 16. Bg3 {[%emt 0:14:16]} ({White should try} 16. c4 $1 $16 {[%cal Rc4d5]} Nb4 17. Qe2) 16... Nb6 {[%emt 0:04:26]} 17. c4 Bd7 {[%emt 0:03:39]} 18. c5 {[%emt 0:19:41]} Rfc8 {[%emt 0:00:16] [#]} 19. Qe4 {[%emt 0:07:17]} ({But not} 19. Bxe5 $6 Rxc5 {[%mdl 64] Double Attack} 20. Qe4 Rxe5 $11) (19. Rc1 $1 $16 Nc6 20. Qe4) 19... Rxc5 {[%emt 0:01:22]} 20. Qxb7 {[%emt 0:01:07]} Rac8 {[%emt 0:09:13] [#]} 21. Bxe5 {[%emt 0:03:26]} (21. Nf5 $1 $16 {[%cal Rf5e7]} exf5 22. Bxe5 Rxe5 23. Rxd7 Nxd7 24. Qxc8+ Nf8 25. Qb7) 21... Rxe5 {[%emt 0:00:04]} 22. Rc1 {[%emt 0:00:23]} Rec5 {[%emt 0:00:20]} 23. Rxc5 {[%emt 0:00:06]} Rxc5 {[%emt 0:00:18]} 24. h3 {[%emt 0:02:42]} Rc8 {[%emt 0:15:44]} 25. Rd1 {[%emt 0:01:12]} Ba4 {[%emt 0:00:07]} 26. Nf3 {[%emt 0:03:30]} Bc6 {[%emt 0:04:15]} 27. Qe7 {[%emt 0:00:41]} Bxf3 {[%emt 0:00:04]} 28. gxf3 {[%emt 0:00:08]} Qg5+ {[%emt 0:02:44]} 29. Qxg5 {[%emt 0:00:05]} hxg5 {[%emt 0:00:01]} 30. Rd4 {[%emt 0:00:18]} Kf8 {[%emt 0:00:31]} 31. h4 {[%emt 0:01:31]} gxh4 32. Rxh4 {[%emt 0:00:01]} Rc5 {[%emt 0:02:19]} 33. Rh8+ {[%emt 0:00:32]} Ke7 {[%emt 0:00:01]} 34. Rb8 {[%emt 0:00:09]} Kd7 {[%emt 0:00:45]} 35. Rf8 {[%emt 0:01:15]} Ke7 {[%emt 0:00:04]} 36. Rg8 {[%emt 0:00:46]} g6 {[%emt 0:00:19]} 37. Kg2 {[%emt 0:00:26]} Rc8 {[%emt 0:01:04]} 38. Rxc8 {[%emt 0:00:19]} Nxc8 {[%emt 0:00:01]} 39. f4 {[%emt 0:00:20]} Kd6 {[%emt 0:01:28]} 40. Kf3 {[%emt 0:00:29]} f5 {[%emt 0:00:25]} 41. Ke2 $11 {[%emt 0:13:42]} Ne7 {[%emt 0:04:54]} 42. Kd3 {[%emt 0:01:37]} e5 {[%emt 0:02:13]} 43. fxe5+ {[%emt 0:00:52]} Kxe5 {[%emt 0:00:02]} 44. f4+ Kf6 {[%emt 0:00:33]} 45. Kd4 {[%emt 0:02:26]} g5 46. fxg5+ {[%emt 0:00:06]} Kxg5 {[%emt 0:00:41]} 47. Ke5 {[%emt 0:04:33]} Ng6+ {[%emt 0:02:44]} 48. Kd6 {[%emt 0:01:59]} f4 {[%emt 0:00:14]} 49. exf4+ {[%emt 0:01:32]} Kxf4 {[%emt 0:00:40]} 50. Kc6 {[%emt 0:00:13]} Ke5 {[%emt 0:00:25]} 51. a4 {[%emt 0:01:15]} a5 {[%emt 0:00:20]} 52. Kb6 {[%emt 0:00:18]} Kd6 {[%emt 0:00:19]} 53. Kxa5 {[%emt 0:00:09]} Kc5 {[%emt 0:00:08]} 54. Bd1 {[%emt 0:02:03]} Ne5 {[%emt 0:00:08]} 55. Ka6 {[%emt 0:00:24]} Kb4 {[%emt 0:00:22]} 56. Kb6 {[%emt 0:01:10]} Nc4+ {[%emt 0:00:12]} 57. Ka6 {[%emt 0:00:13]} Nb2 {[%emt 0:00:04]} 1/2-1/2

[Event "CZE-tht Extraliga 2018-19"]
[Site "Czech Republic"]
[Date "2019.02.09"]
[Round "7.7"]
[White "Chytilek, Roman"]
[Black "Jansa, Vlastimil"]
[Result "0-1"]
[ECO "D97"]
[WhiteElo "2334"]
[BlackElo "2454"]
[Annotator "RC"]
[PlyCount "106"]
[EventDate "2018.11.03"]
[EventType "team-tourn"]
[EventCountry "CZE"]
[SourceTitle "playchess.com"]
[Source "ChessBase"]
[SourceQuality "1"]
[WhiteTeam "Duras"]
[BlackTeam "Lysa nad Labem"]
[TimeControl "40/5400+30:1800+30"]

1. d4 {[%emt 0:00:00]} Nf6 {[%emt 0:00:00]} 2. c4 {[%emt 0:00:05]} g6 {[%emt 0:00:00]} 3. Nc3 {[%emt 0:00:19]} d5 {[%emt 0:00:00]} 4. Nf3 {[%emt 0:00:54]} Bg7 {[%emt 0:00:04]} 5. Qb3 {[%emt 0:00:52]} dxc4 {[%emt 0:00:39]} 6. Qxc4 {[%emt 0:00:07]} O-O {[%emt 0:00:30]} 7. e4 {[%emt 0:00:40]} Nc6 {[%emt 0:08:07]} 8. Be2 {[%emt 0:03:45]} Bg4 {[%emt 0:03:56]} 9. d5 {[%emt 0:03:28]} Na5 {[%emt 0:01:25]} 10. Qb4 {[%emt 0:02:33]} Bxf3 {[%emt 0:04:54]} 11. Bxf3 {[%emt 0:00:36]} c6 {[%emt 0:01:26]} 12. O-O {[%emt 0:02:09]} Nd7 {[%emt 0:08:11]} 13. Rd1 {[%emt 0:05:28]} c5 {[%emt 0:03:52]} 14. Qa4 {[%emt 0:23:12]} a6 {[%emt 0:02:17]} 15. Qc2 {[%emt 0:01:58]} b5 {[%emt 0:04:33]} 16. Bg5 {[%emt 0:05:14]} h6 {[%emt 0:04:23]} 17. Bd2 {[%emt 0:05:26]} Nc4 {[%emt 0:01:28]} 18. Be1 {[%emt 0:01:49]} Nd6 {[%emt 0:03:26]} 19. a3 {[%emt 0:16:33]} c4 {[%emt 0:08:50]} 20. Na2 {[%emt 0:04:27]} a5 {[%emt 0:15:46]} 21. Bc3 {[%emt 0:01:39]} Ne5 {[%emt 0:00:53]} 22. Bxe5 {[%emt 0:04:39]} Bxe5 {[%emt 0:00:09]} 23. Nc3 {[%emt 0:00:12]} b4 {[%emt 0:02:19]} 24. Ne2 {[%emt 0:02:06]} Qb6 {[%emt 0:01:02]} 25. Rab1 {[%emt 0:05:08]} Qc5 {[%emt 0:01:58]} 26. a4 {[%emt 0:01:34]} Rac8 {[%emt 0:02:45]} 27. Rbc1 {[%emt 0:01:27]} Kg7 {[%emt 0:02:34]} 28. Qd2 {[%emt 0:03:38]} Rc7 {[%emt 0:07:49]} 29. Nf4 {[%emt 0:03:37]} Qb6 {[%emt 0:02:26]} 30. g3 {[%emt 0:00:15]} c3 {[%emt 0:00:53]} 31. bxc3 {[%emt 0:00:09]} bxc3 {[%emt 0:01:42]} 32. Qc2 {[%emt 0:00:58]} Nc4 {[%emt 0:00:21]} 33. Nd3 {[%emt 0:00:55]} Bd4 {[%emt 0:00:35]} 34. Kg2 {[%emt 0:00:28]} Rb8 {[%emt 0:01:54]} 35. Rb1 {[%emt 0:00:23]} Qa7 {[%emt 0:00:51]} 36. Rxb8 {[%emt 0:00:17]} Qxb8 {[%emt 0:00:04]} 37. Rc1 {[%emt 0:00:52]} Nd2 {[%emt 0:01:25]} 38. Rd1 {[%emt 0:00:29]} Qb6 {[%emt 0:01:20]} 39. h4 {[%emt 0:00:31]} h5 {[%emt 0:00:27]} 40. Rxd2 {[%emt 0:00:36]} cxd2 {[%emt 0:00:12]} 41. Qxd2 {[%emt 0:30:08]} Qb3 {[%emt 0:08:20]} 42. Bd1 {[%emt 0:00:00]} Qc3 {[%emt 0:01:32]} 43. Qe2 {[%emt 0:00:00]} Ba7 {[%emt 0:02:49]} 44. e5 {[%emt 0:00:00]} Qd4 {[%emt 0:01:34]} 45. Qf3 {[%emt 0:00:00]} Rc3 {[%emt 0:05:29]} 46. Be2 {[%emt 0:00:00]} Qxa4 {[%emt 0:01:19]} 47. d6 {[%emt 0:00:00]} Qd7 {[%emt 0:03:11]} 48. Qd5 {[%emt 0:00:36]} a4 {[%emt 0:04:04]} 49. Bf3 {[%emt 0:01:37]} a3 {[%emt 0:01:19]} 50. dxe7 {[%emt 0:01:05]} Qxe7 {[%emt 0:00:56]} 51. Be4 {[%emt 0:00:56]} Rc2 {[%emt 0:01:14]} 52. Qb3 {[%emt 0:01:05]} a2 {[%emt 0:00:43]} 53. Qa4 {[%emt 0:00:37]} Rc4 {[%emt 0:01:06]} 0-1

[Event "CZE-tht Extraliga 2018-19"]
[Site "Czech Republic"]
[Date "2019.02.09"]
[Round "7.7"]
[White "Pisk, Petr"]
[Black "Kuba, Jindrich"]
[Result "1/2-1/2"]
[ECO "A47"]
[WhiteElo "2330"]
[BlackElo "2310"]
[Annotator "NA"]
[PlyCount "38"]
[EventDate "2018.11.03"]
[EventType "team-tourn"]
[EventCountry "CZE"]
[SourceTitle "playchess.com"]
[Source "ChessBase"]
[SourceQuality "1"]
[WhiteTeam "Brno"]
[BlackTeam "Siesta B"]
[TimeControl "40/5400+30:1800+30"]

1. d4 {[%emt 0:00:44]} Nf6 {[%emt 0:00:00]} 2. Nf3 {[%emt 0:00:27]} b6 {[%emt 0:00:00]} 3. Bg5 {[%emt 0:02:13]} Bb7 {[%emt 0:00:07]} 4. Nbd2 {[%emt 0:08:07]} e6 {[%emt 0:00:28]} 5. e3 {[%emt 0:00:55]} Be7 {[%emt 0:00:31]} 6. Bd3 {[%emt 0:00:56]} d6 {[%emt 0:02:16]} 7. Qe2 {[%emt 0:02:37]} Nbd7 {[%emt 0:00:17]} 8. h3 {[%emt 0:04:21]} c5 {[%emt 0:03:44]} 9. c3 {[%emt 0:02:51]} Qc7 {[%emt 0:00:39]} 10. e4 {[%emt 0:06:35]} h6 {[%emt 0:02:18]} 11. Bxf6 {[%emt 0:08:50]} Bxf6 {[%emt 0:03:50]} 12. O-O {[%emt 0:00:57]} O-O {[%emt 0:00:26]} 13. Rfe1 {[%emt 0:00:35]} e5 {[%emt 0:01:10]} 14. dxe5 {[%emt 0:02:10]} Nxe5 {[%emt 0:02:32]} 15. Nxe5 {[%emt 0:04:39]} dxe5 {[%emt 0:01:40]} 16. Ba6 {[%emt 0:08:00]} Bc6 {[%emt 0:04:36]} 17. Bb5 {[%emt 0:03:43]} Bb7 {[%emt 0:01:03]} 18. Ba6 {[%emt 0:00:09]} Bc6 {[%emt 0:00:06]} 19. Bb5 {[%emt 0:03:28]} Bb7 {[%emt 0:00:08]} 1/2-1/2